[Event "Late-Titled-Tuesday-Blitz-February-13-2024"]
[Site "Chess.com"]
[Date "2024.02.13"]
[Round "8"]
[White "nitpicker"]
[Black "IraZyne"]
[Result "0-1"]
[WhiteElo "2229"]
[BlackElo "2338"]
[TimeControl "180+1"]
[EndTime "15:27:11 PST"]
[Termination "IraZyne won on time"]

1. d4 {[%clk 0:03:00.9]} 1... d5 {[%clk 0:02:59.5]} 2. c4 {[%clk 0:03:00.8]}
2... e6 {[%clk 0:02:59.4]} 3. Nf3 {[%clk 0:03:00.6]} 3... c6 {[%clk 0:02:59.4]}
4. Qc2 {[%clk 0:02:59.6]} 4... dxc4 {[%clk 0:02:59]} 5. Qxc4 {[%clk 0:02:58.5]}
5... Nf6 {[%clk 0:02:58.9]} 6. g3 {[%clk 0:02:46.1]} 6... b5 {[%clk 0:02:54]} 7.
Qc2 {[%clk 0:02:45.4]} 7... Bb7 {[%clk 0:02:54.2]} 8. Nbd2 {[%clk 0:02:43.7]}
8... Nbd7 {[%clk 0:02:53.1]} 9. Nb3 {[%clk 0:02:43.1]} 9... Qb6 {[%clk
0:02:49.3]} 10. Bg2 {[%clk 0:02:15.5]} 10... c5 {[%clk 0:02:45.4]} 11. dxc5
{[%clk 0:01:57.7]} 11... Nxc5 {[%clk 0:02:44.7]} 12. Be3 {[%clk 0:01:53]} 12...
Rc8 {[%clk 0:02:44.5]} 13. Rc1 {[%clk 0:01:50.1]} 13... Be4 {[%clk 0:02:41.6]}
14. Qc3 {[%clk 0:01:31.2]} 14... Nd5 {[%clk 0:02:37.3]} 15. Qd4 {[%clk 0:01:24]}
15... Nxe3 {[%clk 0:02:35.9]} 16. Qxe3 {[%clk 0:01:13.6]} 16... Bb7 {[%clk
0:02:35.2]} 17. O-O {[%clk 0:01:05.8]} 17... Be7 {[%clk 0:02:35.1]} 18. Nbd4
{[%clk 0:00:31.8]} 18... O-O {[%clk 0:02:32]} 19. Ne5 {[%clk 0:00:31.7]} 19...
Bxg2 {[%clk 0:02:30]} 20. Kxg2 {[%clk 0:00:32.6]} 20... Bf6 {[%clk 0:02:23.3]}
21. Ndf3 {[%clk 0:00:21.2]} 21... Na4 {[%clk 0:02:13.5]} 22. b3 {[%clk
0:00:17.1]} 22... Qxe3 {[%clk 0:02:11.7]} 23. fxe3 {[%clk 0:00:18]} 23... Nb6
{[%clk 0:02:10.1]} 24. Nc6 {[%clk 0:00:16]} 24... a6 {[%clk 0:02:05.1]} 25. e4
{[%clk 0:00:12.8]} 25... Rfe8 {[%clk 0:01:51.8]} 26. Rfd1 {[%clk 0:00:12.7]}
26... h6 {[%clk 0:01:48.3]} 27. e5 {[%clk 0:00:11.9]} 27... Bg5 {[%clk
0:01:41.5]} 28. Nxg5 {[%clk 0:00:09.9]} 28... hxg5 {[%clk 0:01:41.4]} 29. e4
{[%clk 0:00:10.3]} 29... Kh7 {[%clk 0:01:38.8]} 30. Nb4 {[%clk 0:00:09.6]} 30...
Ra8 {[%clk 0:01:34.3]} 31. Rc6 {[%clk 0:00:08.5]} 31... a5 {[%clk 0:01:29.5]}
32. Rxb6 {[%clk 0:00:07.2]} 32... axb4 {[%clk 0:01:29.1]} 33. Rd2 {[%clk
0:00:05.5]} 33... Reb8 {[%clk 0:01:26.7]} 34. Rxb8 {[%clk 0:00:05.1]} 34... Rxb8
{[%clk 0:01:26.7]} 35. Kf2 {[%clk 0:00:05.6]} 35... Kg6 {[%clk 0:01:25.4]} 36.
Ke3 {[%clk 0:00:04.6]} 36... Rc8 {[%clk 0:01:24.2]} 37. Rd6 {[%clk 0:00:01.5]}
37... Rc2 {[%clk 0:01:21.8]} 0-1

[Event "Late-Titled-Tuesday-Blitz-February-13-2024"]
[Site "Chess.com"]
[Date "2024.02.13"]
[Round "8"]
[White "HaryKane"]
[Black "KorolDimitriy75"]
[Result "1-0"]
[WhiteElo "2593"]
[BlackElo "2422"]
[TimeControl "180+1"]
[EndTime "15:27:14 PST"]
[Termination "HaryKane won on time"]

1. c4 {[%clk 0:03:00.9]} 1... c5 {[%clk 0:02:59.6]} 2. e3 {[%clk 0:02:59.5]}
2... g6 {[%clk 0:02:59.8]} 3. Ne2 {[%clk 0:02:56.8]} 3... Bg7 {[%clk 0:03:00.7]}
4. Nbc3 {[%clk 0:02:56.8]} 4... Nf6 {[%clk 0:02:52.2]} 5. d4 {[%clk 0:02:55.8]}
5... cxd4 {[%clk 0:02:51.1]} 6. exd4 {[%clk 0:02:55.3]} 6... d5 {[%clk
0:02:50.8]} 7. cxd5 {[%clk 0:02:39.9]} 7... Nxd5 {[%clk 0:02:51.7]} 8. Be3
{[%clk 0:02:33.9]} 8... O-O {[%clk 0:02:29.1]} 9. Nxd5 {[%clk 0:02:33.7]} 9...
Qxd5 {[%clk 0:02:28.7]} 10. Nc3 {[%clk 0:02:34.1]} 10... Qa5 {[%clk 0:02:28]}
11. Be2 {[%clk 0:02:29.9]} 11... Rd8 {[%clk 0:02:25.8]} 12. O-O {[%clk
0:02:25.3]} 12... Nc6 {[%clk 0:02:24]} 13. d5 {[%clk 0:02:13.7]} 13... Bxc3
{[%clk 0:01:43]} 14. bxc3 {[%clk 0:02:13]} 14... Qxd5 {[%clk 0:01:43.5]} 15. Qc1
{[%clk 0:02:09]} 15... Be6 {[%clk 0:01:29.5]} 16. Rb1 {[%clk 0:02:02.6]} 16...
b6 {[%clk 0:01:26.2]} 17. Bf3 {[%clk 0:02:01.5]} 17... Qd7 {[%clk 0:01:22.3]}
18. Rd1 {[%clk 0:02:00.9]} 18... Qc7 {[%clk 0:01:17]} 19. Qa3 {[%clk 0:01:54.3]}
19... Rac8 {[%clk 0:01:11.6]} 20. Bxc6 {[%clk 0:01:39.4]} 20... Qxc6 {[%clk
0:01:12.5]} 21. Qxa7 {[%clk 0:01:38.8]} 21... Qxc3 {[%clk 0:00:41.9]} 22. Qxe7
{[%clk 0:01:31.5]} 22... Re8 {[%clk 0:00:27.9]} 23. Qh4 {[%clk 0:01:28.4]} 23...
Bxa2 {[%clk 0:00:23.5]} 24. Rxb6 {[%clk 0:01:22]} 24... Rc4 {[%clk 0:00:13.1]}
25. Qh6 {[%clk 0:01:17.1]} 25... Qc2 {[%clk 0:00:10.5]} 26. Rbd6 {[%clk
0:01:15]} 26... Rce4 {[%clk 0:00:08.3]} 27. h3 {[%clk 0:01:14.6]} 27... Bb3
{[%clk 0:00:06.8]} 28. Qg5 {[%clk 0:01:12.6]} 28... Qe2 {[%clk 0:00:02.5]} 29.
Qf6 {[%clk 0:01:07.9]} 29... Bxd1 {[%clk 0:00:01.4]} 30. Bh6 {[%clk 0:01:01.7]}
1-0

[Event "Late-Titled-Tuesday-Blitz-February-13-2024"]
[Site "Chess.com"]
[Date "2024.02.13"]
[Round "8"]
[White "MikaelyanArman"]
[Black "FairChess_on_YouTube"]
[Result "0-1"]
[WhiteElo "2813"]
[BlackElo "3074"]
[TimeControl "180+1"]
[EndTime "15:27:18 PST"]
[Termination "FairChess_on_YouTube won by resignation"]

1. d4 {[%clk 0:03:00.9]} 1... Nf6 {[%clk 0:02:57]} 2. c4 {[%clk 0:03:01.2]} 2...
e6 {[%clk 0:02:55]} 3. Nf3 {[%clk 0:03:00]} 3... b6 {[%clk 0:02:53.8]} 4. g3
{[%clk 0:02:58.6]} 4... Bb7 {[%clk 0:02:51.9]} 5. Bg2 {[%clk 0:02:58.7]} 5... g6
{[%clk 0:02:51]} 6. O-O {[%clk 0:02:58.2]} 6... Bg7 {[%clk 0:02:51.1]} 7. Nc3
{[%clk 0:02:57.1]} 7... Ne4 {[%clk 0:02:50.9]} 8. Nxe4 {[%clk 0:02:56.3]} 8...
Bxe4 {[%clk 0:02:51.8]} 9. Bg5 {[%clk 0:02:56.9]} 9... f6 {[%clk 0:02:50.4]} 10.
Be3 {[%clk 0:02:52.9]} 10... O-O {[%clk 0:02:49.2]} 11. Ne1 {[%clk 0:02:43.5]}
11... Bxg2 {[%clk 0:02:45.2]} 12. Nxg2 {[%clk 0:02:44.4]} 12... f5 {[%clk
0:02:45.6]} 13. h4 {[%clk 0:02:38.2]} 13... Nc6 {[%clk 0:02:40.9]} 14. Nf4
{[%clk 0:02:35.6]} 14... Qe7 {[%clk 0:02:38.3]} 15. Qd2 {[%clk 0:02:30.2]} 15...
Qf7 {[%clk 0:02:33.4]} 16. Rab1 {[%clk 0:02:12.5]} 16... Rae8 {[%clk 0:02:28.1]}
17. Rbc1 {[%clk 0:01:57.5]} 17... Nxd4 {[%clk 0:02:17.7]} 18. Bxd4 {[%clk
0:01:45.2]} 18... Bxd4 {[%clk 0:02:18.6]} 19. Qxd4 {[%clk 0:01:45.9]} 19... e5
{[%clk 0:02:18.7]} 20. Qd2 {[%clk 0:01:36.5]} 20... exf4 {[%clk 0:02:18.7]} 21.
Qxf4 {[%clk 0:01:37.4]} 21... Rxe2 {[%clk 0:02:17.2]} 22. Qxc7 {[%clk
0:01:37.6]} 22... f4 {[%clk 0:02:06.1]} 23. Rcd1 {[%clk 0:01:24.5]} 23... fxg3
{[%clk 0:01:57.2]} 24. Rxd7 {[%clk 0:00:34.8]} 24... gxf2+ {[%clk 0:01:53.5]}
25. Kh2 {[%clk 0:00:35.1]} 25... Qf6 {[%clk 0:01:20.3]} 26. Qg3 {[%clk
0:00:34.9]} 26... Rxb2 {[%clk 0:01:13]} 27. Rxa7 {[%clk 0:00:33.1]} 27... Rc2
{[%clk 0:01:11.6]} 28. Rc7 {[%clk 0:00:12.3]} 28... Rc1 {[%clk 0:01:02.6]} 29.
Rxc1 {[%clk 0:00:09.4]} 29... f1=Q {[%clk 0:01:03.1]} 30. Rxf1 {[%clk
0:00:07.7]} 30... Qxf1 {[%clk 0:01:04]} 31. Qg4 {[%clk 0:00:02.1]} 31... Rf2+
{[%clk 0:01:03.4]} 0-1

[Event "Late-Titled-Tuesday-Blitz-February-13-2024"]
[Site "Chess.com"]
[Date "2024.02.13"]
[Round "8"]
[White "kikoveiga"]
[Black "GianmarcoVaR"]
[Result "0-1"]
[WhiteElo "2534"]
[BlackElo "2731"]
[TimeControl "180+1"]
[EndTime "15:27:18 PST"]
[Termination "GianmarcoVaR won by resignation"]

1. c4 {[%clk 0:02:58.7]} 1... Nf6 {[%clk 0:02:52.6]} 2. Nc3 {[%clk 0:02:57.7]}
2... e5 {[%clk 0:02:51.7]} 3. Nf3 {[%clk 0:02:56.1]} 3... Nc6 {[%clk 0:02:50.6]}
4. a3 {[%clk 0:02:55.8]} 4... h6 {[%clk 0:02:44.5]} 5. e4 {[%clk 0:02:54.7]}
5... d6 {[%clk 0:02:33.5]} 6. d4 {[%clk 0:02:53.4]} 6... Bg4 {[%clk 0:02:33.2]}
7. d5 {[%clk 0:02:51.1]} 7... Nd4 {[%clk 0:02:29.7]} 8. Be3 {[%clk 0:02:51.1]}
8... g6 {[%clk 0:02:21.4]} 9. Bxd4 {[%clk 0:02:47.7]} 9... exd4 {[%clk
0:02:21.7]} 10. Qxd4 {[%clk 0:02:48.5]} 10... Bg7 {[%clk 0:02:22.2]} 11. Be2
{[%clk 0:02:41.2]} 11... O-O {[%clk 0:02:19.8]} 12. Qd3 {[%clk 0:02:40.4]} 12...
Re8 {[%clk 0:02:13.1]} 13. O-O {[%clk 0:02:38.8]} 13... Nd7 {[%clk 0:02:06.1]}
14. Nd2 {[%clk 0:02:37.5]} 14... Nc5 {[%clk 0:01:12]} 15. Qc2 {[%clk 0:02:23.6]}
15... Bxc3 {[%clk 0:01:08.5]} 16. Bxg4 {[%clk 0:02:22.5]} 16... Bxd2 {[%clk
0:00:59.7]} 17. Qxd2 {[%clk 0:02:23.4]} 17... h5 {[%clk 0:00:58.4]} 18. Bf3
{[%clk 0:02:21.9]} 18... Nxe4 {[%clk 0:00:57.6]} 19. Bxe4 {[%clk 0:02:21]} 19...
Rxe4 {[%clk 0:00:58.5]} 20. Rac1 {[%clk 0:02:07.2]} 20... Qe7 {[%clk 0:00:56.7]}
21. Rfe1 {[%clk 0:02:05.1]} 21... Re8 {[%clk 0:00:56.8]} 22. Kf1 {[%clk
0:02:05.1]} 22... Qe5 {[%clk 0:00:53.1]} 23. f3 {[%clk 0:01:56.5]} 23... Qf6
{[%clk 0:00:25.1]} 24. b4 {[%clk 0:01:31.9]} 24... Rxe1+ {[%clk 0:00:12.8]} 25.
Rxe1 {[%clk 0:01:31.4]} 25... Rxe1+ {[%clk 0:00:13.4]} 26. Qxe1 {[%clk
0:01:29.6]} 26... Qd4 {[%clk 0:00:13.1]} 27. Qc1 {[%clk 0:01:12.6]} 27... b6
{[%clk 0:00:12.3]} 28. Ke2 {[%clk 0:01:08]} 28... Qe5+ {[%clk 0:00:12.6]} 29.
Qe3 {[%clk 0:01:02.5]} 29... Qxh2 {[%clk 0:00:13.5]} 30. Kf1 {[%clk 0:00:51.6]}
30... Qh1+ {[%clk 0:00:13.3]} 31. Kf2 {[%clk 0:00:50.1]} 31... Qh4+ {[%clk
0:00:13.6]} 32. Kg1 {[%clk 0:00:50.6]} 32... Qxc4 {[%clk 0:00:14.4]} 0-1

[Event "Late-Titled-Tuesday-Blitz-February-13-2024"]
[Site "Chess.com"]
[Date "2024.02.13"]
[Round "8"]
[White "rcmz"]
[Black "PNEPaul"]
[Result "1-0"]
[WhiteElo "2158"]
[BlackElo "1892"]
[TimeControl "180+1"]
[EndTime "15:27:28 PST"]
[Termination "rcmz won by resignation"]

1. b4 {[%clk 0:03:00.9]} 1... d5 {[%clk 0:02:59]} 2. Bb2 {[%clk 0:03:00.8]} 2...
e5 {[%clk 0:02:58.8]} 3. Bxe5 {[%clk 0:02:59.1]} 3... Nc6 {[%clk 0:02:58.5]} 4.
Bb2 {[%clk 0:02:56.8]} 4... Nxb4 {[%clk 0:02:57.9]} 5. e3 {[%clk 0:02:56.5]}
5... Nf6 {[%clk 0:02:57.1]} 6. Nf3 {[%clk 0:02:54.8]} 6... Be7 {[%clk
0:02:55.9]} 7. a3 {[%clk 0:02:48.1]} 7... Nc6 {[%clk 0:02:55.6]} 8. c4 {[%clk
0:02:46.2]} 8... O-O {[%clk 0:02:53.5]} 9. cxd5 {[%clk 0:02:45.6]} 9... Nxd5
{[%clk 0:02:53.1]} 10. Be2 {[%clk 0:02:45.6]} 10... Bf6 {[%clk 0:02:39]} 11.
Bxf6 {[%clk 0:02:43.9]} 11... Qxf6 {[%clk 0:02:36.6]} 12. d4 {[%clk 0:02:44]}
12... Bf5 {[%clk 0:02:25.1]} 13. O-O {[%clk 0:02:42]} 13... Rad8 {[%clk
0:02:23.5]} 14. Qc1 {[%clk 0:02:35.6]} 14... Rfe8 {[%clk 0:02:14.7]} 15. Bb5
{[%clk 0:02:30.4]} 15... h6 {[%clk 0:01:52.7]} 16. Bxc6 {[%clk 0:02:23.8]} 16...
bxc6 {[%clk 0:01:50.7]} 17. Nbd2 {[%clk 0:02:23.3]} 17... Bd3 {[%clk 0:01:44.1]}
18. Re1 {[%clk 0:02:21.6]} 18... Ne7 {[%clk 0:01:40.3]} 19. Ne5 {[%clk
0:02:20.5]} 19... Bf5 {[%clk 0:01:24.6]} 20. Qc5 {[%clk 0:02:08.8]} 20... Ng6
{[%clk 0:00:58.1]} 21. Ndf3 {[%clk 0:02:02.5]} 21... Be4 {[%clk 0:00:53.6]} 22.
Qxa7 {[%clk 0:01:52.8]} 22... Bxf3 {[%clk 0:00:19.2]} 23. Nxf3 {[%clk
0:01:50.4]} 23... Nh4 {[%clk 0:00:19]} 24. Nxh4 {[%clk 0:01:47]} 24... Qxh4
{[%clk 0:00:18.7]} 25. Qxc7 {[%clk 0:01:44.2]} 25... Rd5 {[%clk 0:00:18.4]} 26.
Qxc6 {[%clk 0:01:39.9]} 26... Red8 {[%clk 0:00:15.8]} 27. Qc7 {[%clk 0:01:26.1]}
27... Rh5 {[%clk 0:00:11.9]} 28. a4 {[%clk 0:01:17.9]} 28... Kh7 {[%clk
0:00:08.4]} 29. a5 {[%clk 0:01:15.4]} 29... Rdd5 {[%clk 0:00:08.2]} 30. Qg3
{[%clk 0:01:10.2]} 30... Qf6 {[%clk 0:00:06.3]} 31. Qg4 {[%clk 0:00:59.9]} 31...
Rdg5 {[%clk 0:00:02.5]} 32. Qe4+ {[%clk 0:00:58.5]} 32... g6 {[%clk 0:00:02.4]}
33. a6 {[%clk 0:00:54.1]} 1-0

[Event "Late-Titled-Tuesday-Blitz-February-13-2024"]
[Site "Chess.com"]
[Date "2024.02.13"]
[Round "8"]
[White "SergioMoralesG"]
[Black "Smiechu"]
[Result "1-0"]
[WhiteElo "2528"]
[BlackElo "2431"]
[TimeControl "180+1"]
[EndTime "15:27:39 PST"]
[Termination "SergioMoralesG won on time"]

1. d4 {[%clk 0:02:51.9]} 1... Nf6 {[%clk 0:02:59.6]} 2. c4 {[%clk 0:02:51.4]}
2... c5 {[%clk 0:03:00]} 3. d5 {[%clk 0:02:51.5]} 3... e6 {[%clk 0:03:00.4]} 4.
Nc3 {[%clk 0:02:51.3]} 4... exd5 {[%clk 0:03:01]} 5. cxd5 {[%clk 0:02:52.2]}
5... d6 {[%clk 0:03:01.5]} 6. e4 {[%clk 0:02:52.7]} 6... g6 {[%clk 0:03:02]} 7.
Nge2 {[%clk 0:02:53.3]} 7... Bg7 {[%clk 0:03:02]} 8. Ng3 {[%clk 0:02:53.8]} 8...
O-O {[%clk 0:03:01.9]} 9. Bd3 {[%clk 0:02:54.2]} 9... Re8 {[%clk 0:03:00.3]} 10.
O-O {[%clk 0:02:53.7]} 10... a6 {[%clk 0:03:00.7]} 11. a4 {[%clk 0:02:53.6]}
11... Nbd7 {[%clk 0:03:01]} 12. f4 {[%clk 0:02:46.3]} 12... Qc7 {[%clk
0:02:47.8]} 13. Kh1 {[%clk 0:02:42.6]} 13... c4 {[%clk 0:02:47.4]} 14. Bc2
{[%clk 0:02:42.5]} 14... Nc5 {[%clk 0:02:38.6]} 15. f5 {[%clk 0:02:39.2]} 15...
h5 {[%clk 0:02:05.1]} 16. Bg5 {[%clk 0:02:32.9]} 16... Ng4 {[%clk 0:02:05.1]}
17. e5 {[%clk 0:01:58.4]} 17... Bxe5 {[%clk 0:01:43.7]} 18. fxg6 {[%clk
0:01:45.8]} 18... f6 {[%clk 0:01:41.7]} 19. Bh4 {[%clk 0:01:25.9]} 19... Qg7
{[%clk 0:01:26.4]} 20. Nf5 {[%clk 0:01:04.1]} 20... Bxf5 {[%clk 0:01:25.1]} 21.
Bxf5 {[%clk 0:01:02.9]} 21... Ne3 {[%clk 0:01:22.6]} 22. Qxh5 {[%clk 0:01:00.5]}
22... Nxf1 {[%clk 0:01:21.6]} 23. Rxf1 {[%clk 0:01:01.4]} 23... Nd3 {[%clk
0:00:58.5]} 24. Qg4 {[%clk 0:00:53.2]} 24... Re7 {[%clk 0:00:26.2]} 25. Be6+
{[%clk 0:00:52.4]} 25... Kf8 {[%clk 0:00:23.3]} 26. Ne4 {[%clk 0:00:52.2]} 26...
Rae8 {[%clk 0:00:20.6]} 27. Nxf6 {[%clk 0:00:51.5]} 27... Bxf6 {[%clk
0:00:10.2]} 28. Bxf6 {[%clk 0:00:51.2]} 28... Qh6 {[%clk 0:00:03.5]} 29. Bd4+
{[%clk 0:00:36.5]} 1-0

[Event "Late-Titled-Tuesday-Blitz-February-13-2024"]
[Site "Chess.com"]
[Date "2024.02.13"]
[Round "8"]
[White "GoldenShare"]
[Black "MusicCityMaster"]
[Result "1-0"]
[WhiteElo "2558"]
[BlackElo "2460"]
[TimeControl "180+1"]
[EndTime "15:27:41 PST"]
[Termination "GoldenShare won by resignation"]

1. e4 {[%clk 0:02:56.7]} 1... e6 {[%clk 0:03:00.2]} 2. Nc3 {[%clk 0:02:57.6]}
2... d5 {[%clk 0:03:00.5]} 3. d4 {[%clk 0:02:58.5]} 3... Bb4 {[%clk 0:02:59.9]}
4. exd5 {[%clk 0:02:57.8]} 4... exd5 {[%clk 0:02:59.7]} 5. Bd3 {[%clk
0:02:58.7]} 5... Nc6 {[%clk 0:02:59.6]} 6. Ne2 {[%clk 0:02:59.1]} 6... Nge7
{[%clk 0:02:59.4]} 7. O-O {[%clk 0:02:59.4]} 7... Bg4 {[%clk 0:02:59.6]} 8. f3
{[%clk 0:02:58.5]} 8... Bf5 {[%clk 0:02:59.9]} 9. a3 {[%clk 0:02:58.4]} 9...
Bxc3 {[%clk 0:02:53.1]} 10. bxc3 {[%clk 0:02:59.3]} 10... Qd7 {[%clk 0:02:52.3]}
11. Bf4 {[%clk 0:02:56.8]} 11... f6 {[%clk 0:02:48.9]} 12. Rb1 {[%clk
0:02:55.7]} 12... b6 {[%clk 0:02:39.3]} 13. c4 {[%clk 0:02:55.4]} 13... Bxd3
{[%clk 0:02:31.6]} 14. Qxd3 {[%clk 0:02:56.3]} 14... O-O {[%clk 0:02:31.2]} 15.
Rfe1 {[%clk 0:02:54.5]} 15... Kh8 {[%clk 0:02:27.6]} 16. c3 {[%clk 0:02:49]}
16... Rfe8 {[%clk 0:02:17.8]} 17. Bg3 {[%clk 0:02:41.6]} 17... Nf5 {[%clk
0:02:12.6]} 18. Nf4 {[%clk 0:02:39.1]} 18... dxc4 {[%clk 0:02:10.4]} 19. Qxc4
{[%clk 0:02:38.4]} 19... Na5 {[%clk 0:02:06.1]} 20. Qd3 {[%clk 0:02:34.9]} 20...
Nd6 {[%clk 0:01:54.1]} 21. d5 {[%clk 0:02:20.1]} 21... Nac4 {[%clk 0:01:53.2]}
22. Ne6 {[%clk 0:02:18.4]} 22... Nxa3 {[%clk 0:01:46.8]} 23. Ra1 {[%clk
0:02:17.8]} 23... Nac4 {[%clk 0:01:46]} 24. Re2 {[%clk 0:02:06.3]} 24... a5
{[%clk 0:01:40.4]} 25. Rae1 {[%clk 0:02:06.5]} 25... a4 {[%clk 0:01:40.7]} 26.
h4 {[%clk 0:01:59.6]} 26... a3 {[%clk 0:01:40.6]} 27. Ra2 {[%clk 0:01:58.4]}
27... b5 {[%clk 0:01:08.5]} 28. Kh2 {[%clk 0:01:58.5]} 28... Qf7 {[%clk
0:01:01.7]} 29. Rb1 {[%clk 0:01:52.7]} 29... c6 {[%clk 0:00:58.9]} 30. Nf4
{[%clk 0:01:37.6]} 30... cxd5 {[%clk 0:00:52.9]} 31. Nxd5 {[%clk 0:01:32.8]}
31... Ne5 {[%clk 0:00:49.4]} 32. Bxe5 {[%clk 0:01:33.1]} 32... Rxe5 {[%clk
0:00:50.1]} 33. Rd2 {[%clk 0:01:25.6]} 33... Nc4 {[%clk 0:00:48.2]} 34. Rdd1
{[%clk 0:01:20.9]} 34... a2 {[%clk 0:00:44.4]} 35. Rxb5 {[%clk 0:01:21.2]} 35...
Nd6 {[%clk 0:00:35]} 36. Rb6 {[%clk 0:01:20.1]} 36... Nc8 {[%clk 0:00:31]} 37.
Ra6 {[%clk 0:01:08.1]} 37... Rxa6 {[%clk 0:00:23.1]} 38. Qxa6 {[%clk 0:01:09]}
38... Ne7 {[%clk 0:00:17.4]} 39. Qa8+ {[%clk 0:01:01.2]} 39... Ng8 {[%clk
0:00:17.2]} 40. Qxa2 {[%clk 0:00:58.5]} 40... Qh5 {[%clk 0:00:16.2]} 41. Rd4
{[%clk 0:00:53.5]} 41... Rxd5 {[%clk 0:00:12.3]} 42. Qxd5 {[%clk 0:00:53]} 42...
Qxh4+ {[%clk 0:00:13]} 43. Rxh4 {[%clk 0:00:52.6]} 1-0

[Event "Late-Titled-Tuesday-Blitz-February-13-2024"]
[Site "Chess.com"]
[Date "2024.02.13"]
[Round "8"]
[White "LiemLe"]
[Black "DuleMudule"]
[Result "1-0"]
[WhiteElo "3025"]
[BlackElo "2865"]
[TimeControl "180+1"]
[EndTime "15:27:43 PST"]
[Termination "LiemLe won on time"]

1. Nf3 {[%clk 0:03:00.9]} 1... d5 {[%clk 0:02:59.5]} 2. e3 {[%clk 0:03:00.9]}
2... Nc6 {[%clk 0:02:53.1]} 3. d4 {[%clk 0:02:54.6]} 3... Bf5 {[%clk 0:02:49.7]}
4. Bb5 {[%clk 0:02:40.2]} 4... e6 {[%clk 0:02:48.5]} 5. O-O {[%clk 0:02:29.9]}
5... Ne7 {[%clk 0:02:43.1]} 6. Nh4 {[%clk 0:02:21.1]} 6... Bg6 {[%clk
0:02:36.6]} 7. Nd2 {[%clk 0:01:42.3]} 7... a6 {[%clk 0:02:33]} 8. Nxg6 {[%clk
0:01:37.9]} 8... hxg6 {[%clk 0:02:30.5]} 9. Be2 {[%clk 0:01:33.4]} 9... Nf5
{[%clk 0:02:27.5]} 10. g3 {[%clk 0:01:22.8]} 10... e5 {[%clk 0:01:55.7]} 11.
dxe5 {[%clk 0:01:05.3]} 11... Nxe5 {[%clk 0:01:53.9]} 12. Nf3 {[%clk 0:01:05.6]}
12... Qd6 {[%clk 0:01:47.7]} 13. b3 {[%clk 0:00:55.9]} 13... Be7 {[%clk
0:01:42.9]} 14. c4 {[%clk 0:00:52.6]} 14... Bf6 {[%clk 0:01:35.7]} 15. Rb1
{[%clk 0:00:52.2]} 15... dxc4 {[%clk 0:01:20.2]} 16. bxc4 {[%clk 0:00:52.1]}
16... O-O-O {[%clk 0:01:05.2]} 17. Nxe5 {[%clk 0:00:40.9]} 17... Bxe5 {[%clk
0:00:57.4]} 18. Bf3 {[%clk 0:00:37.2]} 18... c6 {[%clk 0:00:41.2]} 19. Qb3
{[%clk 0:00:31]} 19... Qc7 {[%clk 0:00:41.1]} 20. c5 {[%clk 0:00:30.3]} 20...
Rd7 {[%clk 0:00:16.1]} 21. Bb2 {[%clk 0:00:29.8]} 21... Bxb2 {[%clk 0:00:13.1]}
22. Rxb2 {[%clk 0:00:30.7]} 22... Rhd8 {[%clk 0:00:12.4]} 23. Rfb1 {[%clk
0:00:29.7]} 23... Ne7 {[%clk 0:00:09.9]} 24. Qxf7 {[%clk 0:00:29.2]} 24... Nd5
{[%clk 0:00:06.2]} 25. Qxg6 {[%clk 0:00:27.9]} 25... Nc3 {[%clk 0:00:05.5]} 26.
Rxb7 {[%clk 0:00:26.3]} 1-0

[Event "Late-Titled-Tuesday-Blitz-February-13-2024"]
[Site "Chess.com"]
[Date "2024.02.13"]
[Round "8"]
[White "Practical-Play"]
[Black "jcmesafischer"]
[Result "0-1"]
[WhiteElo "2569"]
[BlackElo "2396"]
[TimeControl "180+1"]
[EndTime "15:27:47 PST"]
[Termination "jcmesafischer won by resignation"]

1. d4 {[%clk 0:02:59.4]} 1... Nf6 {[%clk 0:02:59.6]} 2. Nc3 {[%clk 0:02:55.9]}
2... d5 {[%clk 0:02:59]} 3. Bf4 {[%clk 0:02:56]} 3... c5 {[%clk 0:02:53]} 4. e4
{[%clk 0:02:54.8]} 4... e6 {[%clk 0:02:33.9]} 5. Nb5 {[%clk 0:02:52]} 5... Na6
{[%clk 0:02:26.7]} 6. e5 {[%clk 0:02:34.8]} 6... Nd7 {[%clk 0:02:12.8]} 7. Qg4
{[%clk 0:02:29.1]} 7... cxd4 {[%clk 0:02:03.4]} 8. Nd6+ {[%clk 0:02:22.1]} 8...
Bxd6 {[%clk 0:02:00.8]} 9. Qxg7 {[%clk 0:02:22.3]} 9... Bb4+ {[%clk 0:01:44.5]}
10. c3 {[%clk 0:02:21.7]} 10... Rf8 {[%clk 0:01:40]} 11. cxb4 {[%clk 0:02:12.9]}
11... Nxb4 {[%clk 0:01:40.9]} 12. Bb5 {[%clk 0:01:43.4]} 12... Qa5 {[%clk
0:01:33.4]} 13. Bxd7+ {[%clk 0:01:12.2]} 13... Bxd7 {[%clk 0:01:34.3]} 14. Bd2
{[%clk 0:00:59.9]} 14... Nd3+ {[%clk 0:01:14.1]} 15. Ke2 {[%clk 0:00:55.4]}
15... Qa6 {[%clk 0:01:12.2]} 16. Kf3 {[%clk 0:00:38]} 16... O-O-O {[%clk
0:01:05.3]} 17. Qxh7 {[%clk 0:00:16.8]} 17... Nxe5+ {[%clk 0:01:01.9]} 18. Kf4
{[%clk 0:00:14.3]} 18... Qd6 {[%clk 0:00:35.8]} 19. Qc2+ {[%clk 0:00:14.7]}
19... Kb8 {[%clk 0:00:17]} 20. g4 {[%clk 0:00:15.2]} 20... f5 {[%clk 0:00:15.5]}
21. g5 {[%clk 0:00:15]} 21... d3 {[%clk 0:00:14.1]} 22. Qb3 {[%clk 0:00:13.5]}
22... Nc4+ {[%clk 0:00:13.3]} 23. Kf3 {[%clk 0:00:11.6]} 23... Nxd2+ {[%clk
0:00:13.6]} 24. Ke3 {[%clk 0:00:12.5]} 24... Nxb3 {[%clk 0:00:14.3]} 25. axb3
{[%clk 0:00:13.2]} 25... e5 {[%clk 0:00:14.6]} 26. Nf3 {[%clk 0:00:12.7]} 26...
f4+ {[%clk 0:00:14.3]} 27. Kxd3 {[%clk 0:00:12.9]} 27... e4+ {[%clk 0:00:14.9]}
28. Kd2 {[%clk 0:00:13.5]} 28... exf3 {[%clk 0:00:14.9]} 29. h4 {[%clk
0:00:13.8]} 29... Qb4+ {[%clk 0:00:15.2]} 0-1